[Event "*** Titled Tuesday 3|2 Blitz"]
[Site "Chess.com"]
[Date "2016.02.02"]
[Round "8"]
[White "chessking2151"]
[Black "Po6Don"]
[Result "0-1"]
[WhiteElo "2237"]
[BlackElo "2134"]
[TimeControl "180+2"]
[EndTime "18:36:46 PST"]
[Termination "Po6Don won by resignation"]

1. e4 {[%clk 0:03:01.9]} 1... Nc6 {[%clk 0:02:58.8]} 2. d4 {[%clk 0:03:02]} 2...
d5 {[%clk 0:02:59.6]} 3. exd5 {[%clk 0:03:03.5]} 3... Qxd5 {[%clk 0:03:00]} 4.
Nf3 {[%clk 0:03:05]} 4... Bg4 {[%clk 0:03:01.1]} 5. Be2 {[%clk 0:03:06.4]} 5...
O-O-O {[%clk 0:03:02.1]} 6. c4 {[%clk 0:03:07.8]} 6... Qa5+ {[%clk 0:02:55.3]}
7. Bd2 {[%clk 0:03:08.4]} 7... Qa6 {[%clk 0:02:49.7]} 8. Bc3 {[%clk 0:02:55]}
8... Bxf3 {[%clk 0:02:45.9]} 9. gxf3 {[%clk 0:02:54.9]} 9... Nxd4 {[%clk
0:02:27.9]} 10. Bxd4 {[%clk 0:02:38.3]} 10... e5 {[%clk 0:02:27.3]} 11. Qc2
{[%clk 0:02:38.7]} 11... exd4 {[%clk 0:02:22.7]} 12. Nd2 {[%clk 0:02:39.6]}
12... Qe6 {[%clk 0:02:13]} 13. Qe4 {[%clk 0:02:39.2]} 13... Bb4 {[%clk 0:02:01]}
14. Qxe6+ {[%clk 0:02:33.8]} 14... fxe6 {[%clk 0:02:00.9]} 15. Bd3 {[%clk
0:02:34.1]} 15... Ne7 {[%clk 0:01:52.4]} 16. O-O-O {[%clk 0:02:32.6]} 16...
Bxd2+ {[%clk 0:01:49.9]} 17. Kxd2 {[%clk 0:02:30.2]} 17... e5 {[%clk 0:01:41]}
18. Rde1 {[%clk 0:02:30.4]} 18... Nc6 {[%clk 0:01:34.8]} 19. Rhg1 {[%clk
0:02:30.9]} 19... g6 {[%clk 0:01:35.4]} 20. Be4 {[%clk 0:02:31]} 20... Rhf8
{[%clk 0:01:36]} 21. Rg3 {[%clk 0:02:30.5]} 21... Rd6 {[%clk 0:01:27.5]} 22. b3
{[%clk 0:02:27.7]} 22... Nd8 {[%clk 0:01:08.5]} 23. c5 {[%clk 0:01:59.3]} 23...
Ra6 {[%clk 0:01:05]} 24. a4 {[%clk 0:02:00.3]} 24... Ne6 {[%clk 0:01:00.6]} 25.
Bd3 {[%clk 0:01:31.1]} 25... Rc6 {[%clk 0:00:43.2]} 26. b4 {[%clk 0:01:30.1]}
26... Nf4 {[%clk 0:00:37.9]} 27. Rxe5 {[%clk 0:01:26.9]} 27... Re6 {[%clk
0:00:14.3]} 28. Rxe6 {[%clk 0:01:06.7]} 28... Nxe6 {[%clk 0:00:15]} 29. Be4
{[%clk 0:01:08.4]} 29... a5 {[%clk 0:00:14.1]} 30. c6 {[%clk 0:01:01.9]} 30...
b6 {[%clk 0:00:08.3]} 31. bxa5 {[%clk 0:00:53.2]} 31... bxa5 {[%clk 0:00:10.2]}
32. Kd3 {[%clk 0:00:48.9]} 32... Rd8 {[%clk 0:00:11.2]} 33. Kc4 {[%clk
0:00:45.5]} 33... d3 {[%clk 0:00:08.7]} 34. Bxd3 {[%clk 0:00:44.7]} 34... Rd4+
{[%clk 0:00:09.8]} 35. Kc3 {[%clk 0:00:45.2]} 35... Rxa4 {[%clk 0:00:09.8]} 36.
Rh3 {[%clk 0:00:43.8]} 36... Ra3+ {[%clk 0:00:05.4]} 37. Kc2 {[%clk 0:00:31.7]}
37... Rxd3 {[%clk 0:00:07.3]} 38. Rxh7 {[%clk 0:00:31.9]} 38... Rd6 {[%clk
0:00:03.2]} 0-1

[Event "*** Titled Tuesday 3|2 Blitz"]
[Site "Chess.com"]
[Date "2016.02.02"]
[Round "8"]
[White "Thomaslegend"]
[Black "davidarenas1224"]
[Result "1-0"]
[WhiteElo "2103"]
[BlackElo "2077"]
[TimeControl "180+2"]
[EndTime "18:37:00 PST"]
[Termination "Thomaslegend won by resignation"]

1. Nf3 {[%clk 0:03:01.9]} 1... g6 {[%clk 0:02:56.7]} 2. g3 {[%clk 0:03:00.1]}
2... Bg7 {[%clk 0:02:54.3]} 3. Bg2 {[%clk 0:03:01.5]} 3... Nf6 {[%clk
0:02:48.4]} 4. O-O {[%clk 0:03:02.4]} 4... O-O {[%clk 0:02:49]} 5. c4 {[%clk
0:03:03.1]} 5... d6 {[%clk 0:02:48.6]} 6. Nc3 {[%clk 0:03:04.3]} 6... e5 {[%clk
0:02:46.2]} 7. d4 {[%clk 0:03:03.7]} 7... Nbd7 {[%clk 0:02:44.6]} 8. dxe5 {[%clk
0:03:01.9]} 8... dxe5 {[%clk 0:02:44.2]} 9. b3 {[%clk 0:02:56.1]} 9... c6 {[%clk
0:02:36.9]} 10. Ng5 {[%clk 0:02:47]} 10... Qe7 {[%clk 0:02:16.2]} 11. a4 {[%clk
0:02:43.1]} 11... Rd8 {[%clk 0:02:07.7]} 12. Qc2 {[%clk 0:02:40.4]} 12... h6
{[%clk 0:01:53.8]} 13. Nge4 {[%clk 0:02:34.8]} 13... Nxe4 {[%clk 0:01:43.1]} 14.
Nxe4 {[%clk 0:02:35.9]} 14... f5 {[%clk 0:01:42.6]} 15. Ba3 {[%clk 0:02:35.3]}
15... Qe6 {[%clk 0:01:31]} 16. Nd6 {[%clk 0:02:29.8]} 16... Nf6 {[%clk
0:01:19.4]} 17. Rfd1 {[%clk 0:02:22.3]} 17... Bf8 {[%clk 0:01:05.9]} 18. Nxc8
{[%clk 0:01:49]} 18... Raxc8 {[%clk 0:01:07.8]} 19. Bb2 {[%clk 0:01:35.2]} 19...
a5 {[%clk 0:01:05.5]} 20. Qc3 {[%clk 0:01:35.6]} 20... Nd7 {[%clk 0:00:54.9]}
21. Qxa5 {[%clk 0:01:31.3]} 21... Bd6 {[%clk 0:00:31.2]} 22. Qc3 {[%clk
0:01:23.8]} 22... Bc5 {[%clk 0:00:27.8]} 23. b4 {[%clk 0:01:19.9]} 23... Bf8
{[%clk 0:00:23.8]} 24. c5 {[%clk 0:01:13.9]} 24... Bg7 {[%clk 0:00:24.3]} 25.
Rd6 {[%clk 0:01:07]} 25... Qf7 {[%clk 0:00:22.3]} 26. Rad1 {[%clk 0:01:05.4]}
26... Bf6 {[%clk 0:00:23.4]} 27. e4 {[%clk 0:00:59.7]} 27... Kg7 {[%clk
0:00:13.2]} 28. Bf1 {[%clk 0:00:55.5]} 28... Rc7 {[%clk 0:00:12.6]} 29. Bc4
{[%clk 0:00:55.3]} 29... Qe7 {[%clk 0:00:13.8]} 30. Be6 {[%clk 0:00:53.5]} 30...
f4 {[%clk 0:00:06.2]} 31. Qd2 {[%clk 0:00:51.2]} 31... fxg3 {[%clk 0:00:06.1]}
32. hxg3 {[%clk 0:00:51.8]} 32... Bg5 {[%clk 0:00:07.5]} 33. Qd3 {[%clk
0:00:52]} 33... Bf6 {[%clk 0:00:08.5]} 34. Bxd7 {[%clk 0:00:49.3]} 34... Rf8
{[%clk 0:00:04.4]} 35. Bh3 {[%clk 0:00:44]} 35... Kh7 {[%clk 0:00:04.4]} 36. Rd7
{[%clk 0:00:44.9]} 36... Rxd7 {[%clk 0:00:03.1]} 37. Qxd7 {[%clk 0:00:46.8]}
37... Rf7 {[%clk 0:00:04.4]} 38. Be6 {[%clk 0:00:42.1]} 38... Rg7 {[%clk
0:00:02]} 39. Qxe7 {[%clk 0:00:39.6]} 39... Rxe7 {[%clk 0:00:03.9]} 40. Rd7
{[%clk 0:00:40.5]} 40... Kg7 {[%clk 0:00:04.2]} 41. Rxe7+ {[%clk 0:00:41.8]}
41... Bxe7 {[%clk 0:00:06.1]} 42. Bc8 {[%clk 0:00:43.6]} 42... Kh8 {[%clk
0:00:07.4]} 43. Bxb7 {[%clk 0:00:44.9]} 1-0

[Event "*** Titled Tuesday 3|2 Blitz"]
[Site "Chess.com"]
[Date "2016.02.02"]
[Round "8"]
[White "Dr-Bassem"]
[Black "gmcorrales"]
[Result "1/2-1/2"]
[WhiteElo "2491"]
[BlackElo "2491"]
[TimeControl "180+2"]
[EndTime "18:37:01 PST"]
[Termination "Game drawn by stalemate"]

1. e4 {[%clk 0:03:01.9]} 1... c5 {[%clk 0:03:00.7]} 2. Nf3 {[%clk 0:03:03.1]}
2... d6 {[%clk 0:03:01.6]} 3. g3 {[%clk 0:03:02.9]} 3... Nf6 {[%clk 0:03:01.3]}
4. d3 {[%clk 0:03:03.1]} 4... g6 {[%clk 0:03:02.2]} 5. Bg2 {[%clk 0:03:04.5]}
5... Bg7 {[%clk 0:03:03.8]} 6. O-O {[%clk 0:03:06.1]} 6... O-O {[%clk
0:03:05.4]} 7. c3 {[%clk 0:03:07.7]} 7... Nc6 {[%clk 0:03:07]} 8. Re1 {[%clk
0:03:08.2]} 8... e5 {[%clk 0:03:07.6]} 9. a3 {[%clk 0:03:09.1]} 9... d5 {[%clk
0:03:04.3]} 10. Nbd2 {[%clk 0:03:09.4]} 10... Re8 {[%clk 0:03:04.2]} 11. b4
{[%clk 0:03:00.7]} 11... cxb4 {[%clk 0:03:03.8]} 12. axb4 {[%clk 0:03:01.5]}
12... dxe4 {[%clk 0:02:41.6]} 13. dxe4 {[%clk 0:03:00.1]} 13... Qc7 {[%clk
0:02:33.8]} 14. Qe2 {[%clk 0:02:47.7]} 14... Be6 {[%clk 0:02:34]} 15. Ng5 {[%clk
0:02:36.7]} 15... Bg4 {[%clk 0:02:34.8]} 16. Bf3 {[%clk 0:02:37.5]} 16... Bxf3
{[%clk 0:02:34.8]} 17. Ngxf3 {[%clk 0:02:37.4]} 17... a6 {[%clk 0:02:28.5]} 18.
Nc4 {[%clk 0:02:29.2]} 18... b5 {[%clk 0:02:28.5]} 19. Nb2 {[%clk 0:02:12.9]}
19... Nd7 {[%clk 0:02:21.3]} 20. Be3 {[%clk 0:02:09]} 20... Nb6 {[%clk
0:02:20.8]} 21. Red1 {[%clk 0:02:04.1]} 21... Bf8 {[%clk 0:02:11]} 22. h4 {[%clk
0:01:59.8]} 22... h5 {[%clk 0:02:08.1]} 23. Ng5 {[%clk 0:01:52.9]} 23... f6
{[%clk 0:02:04.4]} 24. Nf3 {[%clk 0:01:49.8]} 24... Kg7 {[%clk 0:01:59.5]} 25.
Nd2 {[%clk 0:01:37.1]} 25... Red8 {[%clk 0:01:58.1]} 26. Nb3 {[%clk 0:01:38]}
26... Rxd1+ {[%clk 0:01:54.2]} 27. Qxd1 {[%clk 0:01:34.2]} 27... Rd8 {[%clk
0:01:49.9]} 28. Qc1 {[%clk 0:01:31.4]} 28... Nb8 {[%clk 0:01:50.9]} 29. Bh6+
{[%clk 0:01:26]} 29... Kh7 {[%clk 0:01:49.6]} 30. Bxf8 {[%clk 0:01:27.9]} 30...
Rxf8 {[%clk 0:01:51.1]} 31. Nc5 {[%clk 0:01:29.3]} 31... Qc8 {[%clk 0:01:51]}
32. Qe3 {[%clk 0:01:23.4]} 32... Rd8 {[%clk 0:01:51.4]} 33. Nxa6 {[%clk
0:01:19.9]} 33... Nxa6 {[%clk 0:01:17.4]} 34. Qxb6 {[%clk 0:01:19.5]} 34... Rd2
{[%clk 0:01:18.2]} 35. Rxa6 {[%clk 0:00:48.9]} 35... Qxc3 {[%clk 0:00:53.5]} 36.
Ra7+ {[%clk 0:00:37]} 36... Kh6 {[%clk 0:00:54.2]} 37. Qxf6 {[%clk 0:00:33.4]}
37... Rd1+ {[%clk 0:00:17.7]} 38. Kg2 {[%clk 0:00:16.7]} 38... Rg1+ {[%clk
0:00:17.4]} 39. Kxg1 {[%clk 0:00:09.3]} 39... Qe1+ {[%clk 0:00:17.7]} 40. Kg2
{[%clk 0:00:09.7]} 40... Qh1+ {[%clk 0:00:18.7]} 41. Kxh1 {[%clk 0:00:09.1]}
1/2-1/2

[Event "*** Titled Tuesday 3|2 Blitz"]
[Site "Chess.com"]
[Date "2016.02.02"]
[Round "8"]
[White "ethylalcohol"]
[Black "chesstatour"]
[Result "0-1"]
[WhiteElo "1713"]
[BlackElo "1952"]
[TimeControl "180+2"]
[EndTime "18:37:09 PST"]
[Termination "chesstatour won on time"]

1. e4 {[%clk 0:03:01.9]} 1... c6 {[%clk 0:02:59.9]} 2. d4 {[%clk 0:03:01.8]}
2... d5 {[%clk 0:03:01.8]} 3. exd5 {[%clk 0:03:02.9]} 3... cxd5 {[%clk
0:03:03.5]} 4. Bd3 {[%clk 0:03:04.5]} 4... Nc6 {[%clk 0:03:02.9]} 5. Nf3 {[%clk
0:03:03.5]} 5... g6 {[%clk 0:03:03.5]} 6. c3 {[%clk 0:03:04]} 6... Bg7 {[%clk
0:03:02.9]} 7. Bf4 {[%clk 0:03:00.6]} 7... Nh6 {[%clk 0:03:03.6]} 8. Nbd2 {[%clk
0:02:57.9]} 8... O-O {[%clk 0:03:03.7]} 9. O-O {[%clk 0:02:58]} 9... f6 {[%clk
0:03:04.3]} 10. Re1 {[%clk 0:02:51.5]} 10... Nf7 {[%clk 0:03:03.7]} 11. Bg3
{[%clk 0:02:23.8]} 11... e5 {[%clk 0:03:00.8]} 12. dxe5 {[%clk 0:02:23.4]} 12...
fxe5 {[%clk 0:03:01.4]} 13. Bb5 {[%clk 0:02:15.9]} 13... e4 {[%clk 0:03:02]} 14.
Bxc6 {[%clk 0:02:04.2]} 14... bxc6 {[%clk 0:03:03.9]} 15. Nd4 {[%clk 0:02:05.1]}
15... Bd7 {[%clk 0:03:03.2]} 16. N2b3 {[%clk 0:02:00.2]} 16... Qb6 {[%clk
0:02:56.1]} 17. f3 {[%clk 0:01:23.2]} 17... a5 {[%clk 0:02:25.2]} 18. Bf2 {[%clk
0:01:17.2]} 18... a4 {[%clk 0:02:05.9]} 19. Ne6 {[%clk 0:01:11.2]} 19... Qb8
{[%clk 0:01:41.3]} 20. Nbc5 {[%clk 0:01:06.3]} 20... Bxe6 {[%clk 0:01:36.5]} 21.
Nxe6 {[%clk 0:01:07.2]} 21... Qxb2 {[%clk 0:01:27.6]} 22. Nxg7 {[%clk
0:01:03.3]} 22... Kxg7 {[%clk 0:01:24.9]} 23. Bd4+ {[%clk 0:01:03.5]} 23... Kg8
{[%clk 0:01:25.6]} 24. fxe4 {[%clk 0:01:03.5]} 24... dxe4 {[%clk 0:01:13.5]} 25.
Rxe4 {[%clk 0:00:52.5]} 25... Rad8 {[%clk 0:01:12.1]} 26. Rb1 {[%clk 0:00:49.7]}
26... Qxa2 {[%clk 0:01:10.3]} 27. Ra1 {[%clk 0:00:40.1]} 27... Qd5 {[%clk
0:01:09.6]} 28. Re7 {[%clk 0:00:25.2]} 28... c5 {[%clk 0:01:06.3]} 29. Rxa4
{[%clk 0:00:19.4]} 29... cxd4 {[%clk 0:00:48.9]} 30. Rxd4 {[%clk 0:00:20]} 30...
Qc5 {[%clk 0:00:43.2]} 31. Re3 {[%clk 0:00:11.9]} 31... Rxd4 {[%clk 0:00:30.7]}
32. cxd4 {[%clk 0:00:13.8]} 32... Qd5 {[%clk 0:00:28.2]} 33. h3 {[%clk
0:00:12.2]} 33... Nd6 {[%clk 0:00:28.1]} 34. Re7 {[%clk 0:00:06.7]} 34... Nf5
{[%clk 0:00:25.4]} 35. Ra7 {[%clk 0:00:06.7]} 35... Qxd4+ {[%clk 0:00:22.3]} 36.
Qxd4 {[%clk 0:00:07.7]} 36... Nxd4 {[%clk 0:00:24.2]} 37. Rd7 {[%clk 0:00:07.5]}
37... Ne2+ {[%clk 0:00:23.2]} 38. Kh2 {[%clk 0:00:07.7]} 38... Rf7 {[%clk
0:00:22.1]} 39. Rd8+ {[%clk 0:00:07.3]} 39... Kg7 {[%clk 0:00:23.1]} 40. h4
{[%clk 0:00:06.6]} 40... h5 {[%clk 0:00:18.8]} 0-1

[Event "*** Titled Tuesday 3|2 Blitz"]
[Site "Chess.com"]
[Date "2016.02.02"]
[Round "8"]
[White "Zazuliak"]
[Black "ItalianMachine"]
[Result "1-0"]
[WhiteElo "2328"]
[BlackElo "2230"]
[TimeControl "180+2"]
[EndTime "18:38:01 PST"]
[Termination "Zazuliak won on time"]

1. d4 {[%clk 0:03:00]} 1... Nf6 {[%clk 0:03:00.3]} 2. c4 {[%clk 0:03:01.1]} 2...
g6 {[%clk 0:03:01.5]} 3. Nc3 {[%clk 0:03:02.2]} 3... Bg7 {[%clk 0:03:03]} 4. e4
{[%clk 0:03:03.3]} 4... d6 {[%clk 0:03:04.6]} 5. Nf3 {[%clk 0:03:04.2]} 5... O-O
{[%clk 0:03:05.4]} 6. Be2 {[%clk 0:03:05.6]} 6... e5 {[%clk 0:03:05.9]} 7. O-O
{[%clk 0:03:06.7]} 7... Nc6 {[%clk 0:03:07]} 8. Be3 {[%clk 0:03:07.8]} 8... Ng4
{[%clk 0:03:05.8]} 9. Bg5 {[%clk 0:03:08.5]} 9... f6 {[%clk 0:03:05.2]} 10. Bh4
{[%clk 0:03:09.4]} 10... Qe8 {[%clk 0:03:06.7]} 11. dxe5 {[%clk 0:03:09.5]}
11... fxe5 {[%clk 0:03:05.9]} 12. h3 {[%clk 0:03:10.1]} 12... Nf6 {[%clk
0:03:04]} 13. Rc1 {[%clk 0:02:58.8]} 13... Nh5 {[%clk 0:03:00.2]} 14. Nd5 {[%clk
0:02:55.9]} 14... Qd7 {[%clk 0:02:54.8]} 15. c5 {[%clk 0:02:55]} 15... Nf4
{[%clk 0:02:46.3]} 16. cxd6 {[%clk 0:02:52.4]} 16... cxd6 {[%clk 0:02:47.5]} 17.
Bc4 {[%clk 0:02:46.2]} 17... Kh8 {[%clk 0:02:46.6]} 18. Bg3 {[%clk 0:02:41.8]}
18... Ne6 {[%clk 0:02:38.8]} 19. Rc3 {[%clk 0:02:33.4]} 19... Ncd4 {[%clk
0:02:35.6]} 20. Nxd4 {[%clk 0:02:26.8]} 20... Nxd4 {[%clk 0:02:35.6]} 21. Bb3
{[%clk 0:02:21]} 21... Qd8 {[%clk 0:02:22.9]} 22. Qd2 {[%clk 0:01:58]} 22... Bd7
{[%clk 0:02:12.5]} 23. Rfc1 {[%clk 0:01:54.3]} 23... Bc6 {[%clk 0:02:12.1]} 24.
f3 {[%clk 0:01:47.3]} 24... a5 {[%clk 0:02:06.5]} 25. a3 {[%clk 0:01:23.8]}
25... h5 {[%clk 0:01:29.2]} 26. Bf2 {[%clk 0:01:24]} 26... Kh7 {[%clk
0:01:28.2]} 27. Be3 {[%clk 0:01:13.4]} 27... Qh4 {[%clk 0:00:17.8]} 28. Qf2
{[%clk 0:01:05.9]} 28... Qxf2+ {[%clk 0:00:14.2]} 29. Kxf2 {[%clk 0:01:04.8]}
29... Bh6 {[%clk 0:00:15.1]} 30. Bxh6 {[%clk 0:00:56]} 30... Kxh6 {[%clk
0:00:17]} 31. Ba2 {[%clk 0:00:50.4]} 31... g5 {[%clk 0:00:15.4]} 32. Ne3 {[%clk
0:00:46.6]} 32... Bxe4 {[%clk 0:00:12.1]} 33. Rc7 {[%clk 0:00:21.8]} 33... Bxf3
{[%clk 0:00:13.4]} 34. Kg1 {[%clk 0:00:10.6]} 34... Ne2+ {[%clk 0:00:12.4]} 35.
Kh2 {[%clk 0:00:10.6]} 35... Nxc1 {[%clk 0:00:13.6]} 36. Rxc1 {[%clk 0:00:11.7]}
36... Be4 {[%clk 0:00:14.9]} 37. Rc7 {[%clk 0:00:11.9]} 37... Rac8 {[%clk
0:00:14.8]} 38. Rd7 {[%clk 0:00:11.8]} 38... Rfd8 {[%clk 0:00:14.1]} 39. Re7
{[%clk 0:00:12.5]} 39... Kg6 {[%clk 0:00:13.2]} 40. Bd5 {[%clk 0:00:11.5]} 40...
Bxd5 {[%clk 0:00:11.8]} 41. Nxd5 {[%clk 0:00:12.4]} 41... Rc2 {[%clk 0:00:12.7]}
42. Rxb7 {[%clk 0:00:12.4]} 42... Rf8 {[%clk 0:00:11.8]} 43. Ne7+ {[%clk
0:00:13.1]} 43... Kh6 {[%clk 0:00:11.7]} 44. Kg3 {[%clk 0:00:13.1]} 44... Rff2
{[%clk 0:00:11.5]} 45. Ng8+ {[%clk 0:00:12.8]} 45... Kg6 {[%clk 0:00:12.9]} 46.
Ne7+ {[%clk 0:00:13.7]} 46... Kf6 {[%clk 0:00:13.7]} 47. Nd5+ {[%clk 0:00:13.1]}
1-0

[Event "*** Titled Tuesday 3|2 Blitz"]
[Site "Chess.com"]
[Date "2016.02.02"]
[Round "8"]
[White "Anton_Demchenko"]
[Black "DeviatkinAndrey"]
[Result "1/2-1/2"]
[WhiteElo "2609"]
[BlackElo "2460"]
[TimeControl "180+2"]
[EndTime "18:38:51 PST"]
[Termination "Game drawn by repetition"]

1. e4 {[%clk 0:03:01.9]} 1... c6 {[%clk 0:03:00.1]} 2. d4 {[%clk 0:03:02.4]}
2... d5 {[%clk 0:03:01.5]} 3. Nc3 {[%clk 0:03:04.3]} 3... dxe4 {[%clk
0:03:02.2]} 4. Nxe4 {[%clk 0:03:05.3]} 4... Nd7 {[%clk 0:03:03.6]} 5. Nf3 {[%clk
0:03:04.6]} 5... Ngf6 {[%clk 0:03:04.2]} 6. Ng3 {[%clk 0:03:06.2]} 6... e6
{[%clk 0:03:05.7]} 7. Bd3 {[%clk 0:03:07.1]} 7... c5 {[%clk 0:03:07.2]} 8. O-O
{[%clk 0:03:07.4]} 8... cxd4 {[%clk 0:03:08.2]} 9. Nxd4 {[%clk 0:03:08.3]} 9...
Bc5 {[%clk 0:03:09.8]} 10. c3 {[%clk 0:03:05.6]} 10... O-O {[%clk 0:03:06.7]}
11. Nh5 {[%clk 0:02:57.1]} 11... Nxh5 {[%clk 0:01:28.8]} 12. Qxh5 {[%clk
0:02:55.5]} 12... g6 {[%clk 0:01:30.2]} 13. Qe2 {[%clk 0:02:39.5]} 13... e5
{[%clk 0:01:25]} 14. Nb3 {[%clk 0:02:23.5]} 14... Qe7 {[%clk 0:01:14.1]} 15. Bh6
{[%clk 0:02:20]} 15... Re8 {[%clk 0:01:14.6]} 16. Rad1 {[%clk 0:01:40.5]} 16...
a6 {[%clk 0:01:11.9]} 17. Nxc5 {[%clk 0:01:32.4]} 17... Nxc5 {[%clk 0:01:12.6]}
18. Bc2 {[%clk 0:01:34]} 18... f6 {[%clk 0:00:54]} 19. b4 {[%clk 0:01:34.1]}
19... Ne6 {[%clk 0:00:54.5]} 20. Bb3 {[%clk 0:01:34.9]} 20... Kh8 {[%clk
0:00:55.5]} 21. Qf3 {[%clk 0:01:18.8]} 21... Ng7 {[%clk 0:00:54.1]} 22. Be3
{[%clk 0:01:16.4]} 22... Be6 {[%clk 0:00:50.6]} 23. Bc5 {[%clk 0:01:15.1]} 23...
Qf7 {[%clk 0:00:51.5]} 24. Rd6 {[%clk 0:01:13.2]} 24... Rad8 {[%clk 0:00:31.8]}
25. Rb6 {[%clk 0:01:03.5]} 25... Bxb3 {[%clk 0:00:18.3]} 26. Rxf6 {[%clk
0:00:55.8]} 26... Bd5 {[%clk 0:00:17.6]} 27. Rxf7 {[%clk 0:00:56.2]} 27... Bxf3
{[%clk 0:00:18.2]} 28. gxf3 {[%clk 0:00:43.2]} 28... Ne6 {[%clk 0:00:18.4]} 29.
Be3 {[%clk 0:00:39.3]} 29... b5 {[%clk 0:00:17.8]} 30. Ra7 {[%clk 0:00:37]}
30... Ra8 {[%clk 0:00:18.2]} 31. Rxa8 {[%clk 0:00:30.2]} 31... Rxa8 {[%clk
0:00:19.4]} 32. Rd1 {[%clk 0:00:32.1]} 32... Kg7 {[%clk 0:00:20.5]} 33. Rd7+
{[%clk 0:00:31.7]} 33... Kf6 {[%clk 0:00:21.9]} 34. Rxh7 {[%clk 0:00:32.6]}
34... a5 {[%clk 0:00:23.4]} 35. Rb7 {[%clk 0:00:27.8]} 35... axb4 {[%clk
0:00:24.3]} 36. cxb4 {[%clk 0:00:29.7]} 36... Rxa2 {[%clk 0:00:25.2]} 37. Rxb5
{[%clk 0:00:31.2]} 37... Kf5 {[%clk 0:00:25.4]} 38. Kg2 {[%clk 0:00:27.9]} 38...
Rb2 {[%clk 0:00:25.9]} 39. Rb8 {[%clk 0:00:28.4]} 39... Nd4 {[%clk 0:00:22.3]}
40. h4 {[%clk 0:00:11.2]} 40... Nc2 {[%clk 0:00:21.3]} 41. Bc5 {[%clk
0:00:08.2]} 41... Ne1+ {[%clk 0:00:18.7]} 42. Kf1 {[%clk 0:00:09.5]} 42... Nd3
{[%clk 0:00:18.6]} 43. Be3 {[%clk 0:00:08]} 43... Rxb4 {[%clk 0:00:19.3]} 44.
Rf8+ {[%clk 0:00:07]} 44... Ke6 {[%clk 0:00:20.2]} 45. Bg5 {[%clk 0:00:08.2]}
45... Nf4 {[%clk 0:00:17.1]} 46. Rf6+ {[%clk 0:00:08.7]} 46... Kd5 {[%clk
0:00:17.7]} 47. Bxf4 {[%clk 0:00:07.3]} 47... Rxf4 {[%clk 0:00:15.2]} 48. Rxf4
{[%clk 0:00:07.9]} 48... exf4 {[%clk 0:00:16.2]} 49. Ke2 {[%clk 0:00:05.8]}
49... Kc4 {[%clk 0:00:15.1]} 50. Kd2 {[%clk 0:00:06.2]} 50... Kd4 {[%clk
0:00:16.5]} 51. Kc2 {[%clk 0:00:07.2]} 51... Kc4 {[%clk 0:00:17.9]} 52. Kd2
{[%clk 0:00:08.3]} 52... Kd4 {[%clk 0:00:19.3]} 53. Ke2 {[%clk 0:00:09.4]} 53...
Kc3 {[%clk 0:00:18.6]} 54. Kd1 {[%clk 0:00:08.7]} 54... Kd3 {[%clk 0:00:18.7]}
55. Ke1 {[%clk 0:00:10.2]} 55... Kc3 {[%clk 0:00:19]} 56. Ke2 {[%clk 0:00:11.3]}
56... Kc2 {[%clk 0:00:20.2]} 57. Ke1 {[%clk 0:00:11.6]} 57... Kc1 {[%clk
0:00:21]} 58. Ke2 {[%clk 0:00:12.3]} 58... Kc2 {[%clk 0:00:22.3]} 59. Ke1 {[%clk
0:00:13.7]} 59... Kc1 {[%clk 0:00:22.9]} 60. Ke2 {[%clk 0:00:14.9]} 60... Kc2
{[%clk 0:00:24.2]} 61. Ke1 {[%clk 0:00:15.8]} 61... Kd3 {[%clk 0:00:22.5]} 62.
Kd1 {[%clk 0:00:16.2]} 62... Kc3 {[%clk 0:00:23.5]} 63. Ke2 {[%clk 0:00:17]}
63... Kc2 {[%clk 0:00:24.7]} 64. Ke1 {[%clk 0:00:18.4]} 64... Kc1 {[%clk
0:00:25.3]} 65. Ke2 {[%clk 0:00:19.6]} 65... Kc2 {[%clk 0:00:26.6]} 1/2-1/2